[Event "Live Chess"]
[Site "Chess.com"]
[Date "2023.05.21"]
[Round "-"]
[White "HoarseyHorsey"]
[Black "maxmlynek"]
[Result "0-1"]
[WhiteElo "1438"]
[BlackElo "1910"]
[TimeControl "300"]
[EndTime "2:57:18 PDT"]
[Termination "maxmlynek won by checkmate"]

1. d4 {[%clk 0:04:59.2]} 1... d5 {[%clk 0:04:58.9]} 2. c4 {[%clk 0:04:58.4]}
2... c6 {[%clk 0:04:58.8]} 3. cxd5 {[%clk 0:04:56.7]} 3... cxd5 {[%clk
0:04:57.9]} 4. Bf4 {[%clk 0:04:56.4]} 4... e6 {[%clk 0:04:57.8]} 5. e3 {[%clk
0:04:55.9]} 5... Nf6 {[%clk 0:04:57.3]} 6. Nc3 {[%clk 0:04:55.2]} 6... Nc6
{[%clk 0:04:57]} 7. Nf3 {[%clk 0:04:54.6]} 7... Bd6 {[%clk 0:04:55.9]} 8. Bg3
{[%clk 0:04:52.4]} 8... a6 {[%clk 0:04:53.8]} 9. Bd3 {[%clk 0:04:51.5]} 9... Qc7
{[%clk 0:04:47.3]} 10. O-O {[%clk 0:04:49]} 10... h5 {[%clk 0:04:32.3]} 11. Bxd6
{[%clk 0:04:44.3]} 11... Qxd6 {[%clk 0:04:29.6]} 12. Rc1 {[%clk 0:04:38.7]}
12... h4 {[%clk 0:03:58]} 13. h3 {[%clk 0:04:37.4]} 13... Bd7 {[%clk 0:03:30.7]}
14. a4 {[%clk 0:04:34.4]} 14... Ne7 {[%clk 0:03:13.4]} 15. Ne5 {[%clk
0:04:31.7]} 15... Nc6 {[%clk 0:03:06.9]} 16. Nxd7 {[%clk 0:04:30.3]} 16... Qxd7
{[%clk 0:03:05.6]} 17. Qf3 {[%clk 0:04:18.8]} 17... Na5 {[%clk 0:02:36.5]} 18.
e4 {[%clk 0:04:04.1]} 18... dxe4 {[%clk 0:02:24.4]} 19. Nxe4 {[%clk 0:04:02]}
19... Qxd4 {[%clk 0:02:18.6]} 20. Nxf6+ {[%clk 0:03:58.5]} 20... Qxf6 {[%clk
0:02:18.5]} 21. Qxf6 {[%clk 0:03:36.7]} 21... gxf6 {[%clk 0:02:18.4]} 22. b4
{[%clk 0:03:35.9]} 22... Nc6 {[%clk 0:02:12.1]} 23. b5 {[%clk 0:03:35.2]} 23...
axb5 {[%clk 0:02:11.5]} 24. Bxb5 {[%clk 0:03:34.8]} 24... Rc8 {[%clk 0:02:04.6]}
25. Bxc6+ {[%clk 0:03:33.3]} 25... Rxc6 {[%clk 0:02:03.5]} 26. Rxc6 {[%clk
0:03:29.9]} 26... bxc6 {[%clk 0:02:03.4]} 27. Rd1 {[%clk 0:03:28.4]} 27... Ke7
{[%clk 0:02:02.5]} 28. Rd4 {[%clk 0:03:25.4]} 28... Ra8 {[%clk 0:02:01.4]} 29.
f3 {[%clk 0:03:15.7]} 29... Rh8 {[%clk 0:01:50.5]} 30. Kf2 {[%clk 0:03:13]}
30... c5 {[%clk 0:01:45.8]} 31. Rc4 {[%clk 0:03:08.2]} 31... Kd6 {[%clk
0:01:41.9]} 32. Rg4 {[%clk 0:02:53]} 32... f5 {[%clk 0:01:35.7]} 33. Rc4 {[%clk
0:02:51.1]} 33... Kd5 {[%clk 0:01:33.9]} 34. Rc1 {[%clk 0:02:45.6]} 34... Ra8
{[%clk 0:01:31.6]} 35. Ra1 {[%clk 0:02:44.2]} 35... Kc4 {[%clk 0:01:26.1]} 36.
g3 {[%clk 0:02:42.7]} 36... hxg3+ {[%clk 0:01:23.4]} 37. Kxg3 {[%clk 0:02:41.5]}
37... Kb4 {[%clk 0:01:22.1]} 38. h4 {[%clk 0:02:39.4]} 38... Rxa4 {[%clk
0:01:20.4]} 39. Rxa4+ {[%clk 0:02:38]} 39... Kxa4 {[%clk 0:01:19.6]} 40. Kf2
{[%clk 0:02:34.5]} 40... c4 {[%clk 0:01:15.5]} 41. h5 {[%clk 0:02:27.5]} 41...
c3 {[%clk 0:01:13.9]} 42. h6 {[%clk 0:02:27]} 42... c2 {[%clk 0:01:12.8]} 43. h7
{[%clk 0:02:26.6]} 43... c1=Q {[%clk 0:01:11.8]} 44. h8=Q {[%clk 0:02:25.2]}
44... Qd2+ {[%clk 0:01:09.6]} 45. Kf1 {[%clk 0:02:17.9]} 45... Qd3+ {[%clk
0:01:05.9]} 46. Kf2 {[%clk 0:02:16.6]} 46... Qd7 {[%clk 0:01:00.8]} 47. Qh4+
{[%clk 0:02:09.3]} 47... Kb5 {[%clk 0:00:58.3]} 48. Qf6 {[%clk 0:01:59.2]} 48...
Kc6 {[%clk 0:00:54.4]} 49. Qc3+ {[%clk 0:01:56.1]} 49... Kd6 {[%clk 0:00:53.4]}
50. Qd4+ {[%clk 0:01:49.6]} 50... Ke7 {[%clk 0:00:52.2]} 51. Qh4+ {[%clk
0:01:48.4]} 51... Kd6 {[%clk 0:00:48.5]} 52. Qd4+ {[%clk 0:01:47.2]} 52... Kc7
{[%clk 0:00:47.1]} 53. Qa7+ {[%clk 0:01:45.8]} 53... Kd8 {[%clk 0:00:45.2]} 54.
Qa5+ {[%clk 0:01:44.2]} 54... Ke8 {[%clk 0:00:43.2]} 55. Qa8+ {[%clk 0:01:40.1]}
55... Qd8 {[%clk 0:00:42]} 56. Qa4+ {[%clk 0:01:38.9]} 56... Kf8 {[%clk
0:00:41]} 57. Qb4+ {[%clk 0:01:34.5]} 57... Kg8 {[%clk 0:00:39.4]} 58. Qc3
{[%clk 0:01:23.8]} 58... Qb8 {[%clk 0:00:33.5]} 59. Kg2 {[%clk 0:01:15.6]} 59...
e5 {[%clk 0:00:30.2]} 60. Qd2 {[%clk 0:01:05.3]} 60... f4 {[%clk 0:00:28]} 61.
Qc3 {[%clk 0:00:59.5]} 61... Qe8 {[%clk 0:00:26.4]} 62. Qc7 {[%clk 0:00:48]}
62... Qe6 {[%clk 0:00:25.4]} 63. Qd8+ {[%clk 0:00:46]} 63... Kg7 {[%clk
0:00:25]} 64. Qg5+ {[%clk 0:00:44.3]} 64... Kh7 {[%clk 0:00:24.3]} 65. Qh5+
{[%clk 0:00:38.7]} 65... Kg8 {[%clk 0:00:23.6]} 66. Qh4 {[%clk 0:00:21.3]} 66...
Qg6+ {[%clk 0:00:21.3]} 67. Kh3 {[%clk 0:00:17]} 67... f5 {[%clk 0:00:18.8]} 68.
Qd8+ {[%clk 0:00:15.4]} 68... Kh7 {[%clk 0:00:17.6]} 69. Qd7+ {[%clk 0:00:14.4]}
69... Kh6 {[%clk 0:00:17.1]} 70. Qe7 {[%clk 0:00:06.8]} 70... Qg3# {[%clk
0:00:15.6]} 0-1

[Event "Live Chess"]
[Site "Chess.com"]
[Date "2023.05.21"]
[Round "-"]
[White "CeladonFish"]
[Black "MarkLim1"]
[Result "0-1"]
[WhiteElo "1073"]
[BlackElo "1723"]
[TimeControl "300"]
[EndTime "2:57:34 PDT"]
[Termination "MarkLim1 won by resignation"]

1. d4 {[%clk 0:04:58.9]} 1... Nf6 {[%clk 0:04:57.4]} 2. c4 {[%clk 0:04:57.9]}
2... e6 {[%clk 0:04:56.4]} 3. Nc3 {[%clk 0:04:55.3]} 3... d5 {[%clk 0:04:55.6]}
4. Bf4 {[%clk 0:04:54.2]} 4... dxc4 {[%clk 0:04:51.7]} 5. Nb5 {[%clk 0:04:49.6]}
5... Bb4+ {[%clk 0:04:50]} 6. Nc3 {[%clk 0:04:40.1]} 6... c6 {[%clk 0:04:44.8]}
7. e3 {[%clk 0:04:27]} 7... Nd5 {[%clk 0:04:42.4]} 8. Qc2 {[%clk 0:04:23.1]}
8... Nxf4 {[%clk 0:04:39.6]} 9. e4 {[%clk 0:04:21.9]} 9... Qxd4 {[%clk
0:04:35.7]} 10. a3 {[%clk 0:04:17]} 10... Bxc3+ {[%clk 0:04:33.2]} 11. bxc3
{[%clk 0:04:15.9]} 11... Nd3+ {[%clk 0:04:27.2]} 12. Bxd3 {[%clk 0:04:14.3]}
12... Qxd3 {[%clk 0:04:25]} 13. Qxd3 {[%clk 0:04:13.1]} 13... cxd3 {[%clk
0:04:24.1]} 14. Rd1 {[%clk 0:04:12.5]} 14... Na6 {[%clk 0:04:23.2]} 15. Rxd3
{[%clk 0:04:11.6]} 15... Bd7 {[%clk 0:04:21.6]} 16. Nf3 {[%clk 0:04:10.7]} 16...
Nc5 {[%clk 0:04:20.8]} 17. Rd6 {[%clk 0:04:08.2]} 17... O-O-O {[%clk 0:04:19.3]}
18. Ne5 {[%clk 0:04:05.9]} 18... Rhf8 {[%clk 0:04:14.4]} 19. Ke2 {[%clk
0:04:04.1]} 19... Nxe4 {[%clk 0:04:13.3]} 20. Ke3 {[%clk 0:04:02]} 20... Nxc3
{[%clk 0:04:11.8]} 21. Kf4 {[%clk 0:03:58.6]} 21... Nd5+ {[%clk 0:04:10.7]} 22.
Ke4 {[%clk 0:03:57.3]} 22... f6 {[%clk 0:04:09.6]} 23. Nxd7 {[%clk 0:03:55.6]}
23... Rxd7 {[%clk 0:04:08]} 24. Rxe6 {[%clk 0:03:55]} 24... f5+ {[%clk 0:04:01]}
25. Kf3 {[%clk 0:03:51.6]} 25... g5 {[%clk 0:03:59.8]} 26. Rhe1 {[%clk
0:03:49.5]} 26... h5 {[%clk 0:03:57.5]} 27. Re8+ {[%clk 0:03:47.5]} 27... Rxe8
{[%clk 0:03:56.5]} 28. Rxe8+ {[%clk 0:03:47.3]} 28... Kc7 {[%clk 0:03:55.9]} 0-1

[Event "Live Chess"]
[Site "Chess.com"]
[Date "2023.05.21"]
[Round "-"]
[White "RoaringKnights"]
[Black "f4nomore"]
[Result "0-1"]
[WhiteElo "1030"]
[BlackElo "1407"]
[TimeControl "300"]
[EndTime "2:57:37 PDT"]
[Termination "f4nomore won by checkmate"]

1. e4 {[%clk 0:04:59]} 1... g6 {[%clk 0:04:59.9]} 2. Bc4 {[%clk 0:04:57.1]} 2...
Bg7 {[%clk 0:04:59.8]} 3. Qf3 {[%clk 0:04:54.2]} 3... e6 {[%clk 0:04:58.5]} 4.
d4 {[%clk 0:04:52.7]} 4... Ne7 {[%clk 0:04:57.3]} 5. e5 {[%clk 0:04:51.5]} 5...
O-O {[%clk 0:04:54.6]} 6. Ne2 {[%clk 0:04:47.4]} 6... d6 {[%clk 0:04:53.5]} 7.
exd6 {[%clk 0:04:45.3]} 7... cxd6 {[%clk 0:04:51.9]} 8. Bf4 {[%clk 0:04:44]}
8... d5 {[%clk 0:04:50.2]} 9. Bb3 {[%clk 0:04:40.6]} 9... Nbc6 {[%clk
0:04:48.5]} 10. Bg5 {[%clk 0:04:38.4]} 10... Qc7 {[%clk 0:04:46]} 11. Qh3 {[%clk
0:04:33.8]} 11... e5 {[%clk 0:04:40]} 12. dxe5 {[%clk 0:04:30.8]} 12... Bxh3
{[%clk 0:04:37.4]} 13. gxh3 {[%clk 0:04:25.2]} 13... Nf5 {[%clk 0:04:35.1]} 14.
Bxd5 {[%clk 0:04:20.5]} 14... Ncd4 {[%clk 0:04:29.8]} 15. Nxd4 {[%clk
0:04:15.3]} 15... Nxd4 {[%clk 0:04:27.9]} 16. Bb3 {[%clk 0:04:12.6]} 16... Qxe5+
{[%clk 0:04:22.5]} 17. Be3 {[%clk 0:04:10.2]} 17... Nf3+ {[%clk 0:04:16.3]} 18.
Ke2 {[%clk 0:04:06.9]} 18... Qxb2 {[%clk 0:04:11.9]} 19. Kxf3 {[%clk 0:04:01.8]}
19... Qxa1 {[%clk 0:04:09.8]} 20. c3 {[%clk 0:04:00.6]} 20... Qb2 {[%clk
0:04:05.2]} 21. a3 {[%clk 0:03:59.9]} 21... Bxc3 {[%clk 0:03:57]} 22. Bc4 {[%clk
0:03:54.7]} 22... Bg7 {[%clk 0:03:45.7]} 23. Bc1 {[%clk 0:03:51.7]} 23... Qf6+
{[%clk 0:03:42.6]} 24. Kg2 {[%clk 0:03:49.7]} 24... Qc6+ {[%clk 0:03:32.2]} 25.
Kg1 {[%clk 0:03:47.1]} 25... Qxc4 {[%clk 0:03:30.9]} 26. Bg5 {[%clk 0:03:43.8]}
26... h6 {[%clk 0:03:21.1]} 27. Bf4 {[%clk 0:03:41.9]} 27... g5 {[%clk
0:03:18.9]} 28. Be3 {[%clk 0:03:40]} 28... Rae8 {[%clk 0:03:12.9]} 29. Kg2
{[%clk 0:03:37.2]} 29... Qe4+ {[%clk 0:03:07.6]} 30. Kg1 {[%clk 0:03:36.4]}
30... Qxb1+ {[%clk 0:03:05.5]} 31. Kg2 {[%clk 0:03:35.5]} 31... Qe4+ {[%clk
0:03:04]} 32. Kg1 {[%clk 0:03:32.8]} 32... Qa4 {[%clk 0:03:02.5]} 33. Kg2 {[%clk
0:03:29.7]} 33... Rxe3 {[%clk 0:03:00.8]} 34. fxe3 {[%clk 0:03:28.4]} 34... Qe4+
{[%clk 0:02:58.9]} 35. Kg1 {[%clk 0:03:20.7]} 35... Qxe3+ {[%clk 0:02:56.9]} 36.
Kg2 {[%clk 0:03:19.9]} 36... Rd8 {[%clk 0:02:54.8]} 37. Rd1 {[%clk 0:03:13.2]}
37... Rxd1 {[%clk 0:02:51]} 38. a4 {[%clk 0:03:11.3]} 38... Rd2+ {[%clk
0:02:48.3]} 39. Kf1 {[%clk 0:03:10.5]} 39... Qd3+ {[%clk 0:02:43]} 40. Ke1
{[%clk 0:03:00.2]} 40... Ra2 {[%clk 0:02:40.3]} 41. a5 {[%clk 0:02:56.2]} 41...
Qb1# {[%clk 0:02:23.9]} 0-1

[Event "Live Chess"]
[Site "Chess.com"]
[Date "2023.05.21"]
[Round "-"]
[White "LiamClery2020"]
[Black "wadsy27"]
[Result "0-1"]
[WhiteElo "1983"]
[BlackElo "2556"]
[TimeControl "300"]
[EndTime "2:57:38 PDT"]
[Termination "wadsy27 won by resignation"]

1. e4 {[%clk 0:04:59.5]} 1... e6 {[%clk 0:04:58.7]} 2. d4 {[%clk 0:04:58.1]}
2... d5 {[%clk 0:04:58.6]} 3. Nd2 {[%clk 0:04:55.7]} 3... Nf6 {[%clk 0:04:54.8]}
4. e5 {[%clk 0:04:52.2]} 4... Nfd7 {[%clk 0:04:54]} 5. Ngf3 {[%clk 0:04:51.7]}
5... c5 {[%clk 0:04:53.2]} 6. c3 {[%clk 0:04:51.1]} 6... Nc6 {[%clk 0:04:52]} 7.
Bd3 {[%clk 0:04:50.6]} 7... Be7 {[%clk 0:04:48.7]} 8. Qe2 {[%clk 0:04:48]} 8...
a5 {[%clk 0:04:47.5]} 9. a3 {[%clk 0:04:46.2]} 9... a4 {[%clk 0:04:44.8]} 10.
Nf1 {[%clk 0:04:42]} 10... Na5 {[%clk 0:04:42]} 11. Ng3 {[%clk 0:04:38.5]} 11...
Nb3 {[%clk 0:04:38.9]} 12. Rb1 {[%clk 0:04:36.2]} 12... Qa5 {[%clk 0:04:28]} 13.
O-O {[%clk 0:04:34.7]} 13... b6 {[%clk 0:04:24.7]} 14. Nh5 {[%clk 0:04:32]}
14... Bf8 {[%clk 0:04:22]} 15. Bg5 {[%clk 0:04:23.4]} 15... Ba6 {[%clk
0:04:19.4]} 16. Bxa6 {[%clk 0:04:22.2]} 16... Qxa6 {[%clk 0:04:18.6]} 17. Qc2
{[%clk 0:04:17.9]} 17... h6 {[%clk 0:04:14.6]} 18. Bh4 {[%clk 0:04:14.5]} 18...
Rc8 {[%clk 0:04:10.6]} 19. Qd1 {[%clk 0:04:09.8]} 19... cxd4 {[%clk 0:03:58.9]}
20. Nxd4 {[%clk 0:04:06.9]} 20... Nxe5 {[%clk 0:03:50.8]} 21. Nxb3 {[%clk
0:04:02.5]} 21... axb3 {[%clk 0:03:49.2]} 22. Qxb3 {[%clk 0:04:02.4]} 22... Qc4
{[%clk 0:03:41.4]} 23. Qxc4 {[%clk 0:03:58.2]} 23... Nxc4 {[%clk 0:03:39.3]} 24.
Rfd1 {[%clk 0:03:51.3]} 24... f5 {[%clk 0:03:27.5]} 25. Bg3 {[%clk 0:03:47.9]}
25... Kf7 {[%clk 0:03:22.4]} 26. Nf4 {[%clk 0:03:37.9]} 26... g5 {[%clk
0:03:19.2]} 27. Nd3 {[%clk 0:03:36.3]} 27... f4 {[%clk 0:03:17.6]} 28. b3 {[%clk
0:03:32.9]} 28... Nxa3 {[%clk 0:03:15.1]} 29. Ne5+ {[%clk 0:03:31.7]} 29... Kf6
{[%clk 0:03:09.4]} 30. Ng4+ {[%clk 0:03:29.8]} 30... Kf5 {[%clk 0:03:05.4]} 0-1

[Event "Live Chess"]
[Site "Chess.com"]
[Date "2023.05.21"]
[Round "-"]
[White "peter-785"]
[Black "NatashaRegan"]
[Result "0-1"]
[WhiteElo "1189"]
[BlackElo "1722"]
[TimeControl "300"]
[EndTime "2:57:52 PDT"]
[Termination "NatashaRegan won by checkmate"]

1. e4 {[%clk 0:04:50.3]} 1... Nf6 {[%clk 0:04:56.8]} 2. Nc3 {[%clk 0:04:45.2]}
2... e5 {[%clk 0:04:54.4]} 3. Nf3 {[%clk 0:04:43.3]} 3... Nc6 {[%clk 0:04:52]}
4. Bc4 {[%clk 0:04:39.4]} 4... Be7 {[%clk 0:04:48]} 5. d4 {[%clk 0:04:35.8]}
5... exd4 {[%clk 0:04:42.6]} 6. Nxd4 {[%clk 0:04:34.5]} 6... O-O {[%clk
0:04:38.5]} 7. O-O {[%clk 0:04:30.9]} 7... Ne5 {[%clk 0:04:22]} 8. Bb3 {[%clk
0:04:13.9]} 8... c6 {[%clk 0:04:19.2]} 9. Be3 {[%clk 0:04:06.4]} 9... d5 {[%clk
0:04:16.9]} 10. exd5 {[%clk 0:04:03.8]} 10... cxd5 {[%clk 0:04:15.6]} 11. Bf4
{[%clk 0:03:51.4]} 11... Ng6 {[%clk 0:04:08]} 12. Bd2 {[%clk 0:03:40.4]} 12...
Bg4 {[%clk 0:04:03.2]} 13. Qc1 {[%clk 0:03:33.2]} 13... Rc8 {[%clk 0:03:55.5]}
14. h3 {[%clk 0:03:20.7]} 14... Bh5 {[%clk 0:03:38.4]} 15. Re1 {[%clk
0:02:44.6]} 15... Bc5 {[%clk 0:03:17]} 16. Nce2 {[%clk 0:02:37.7]} 16... Ne4
{[%clk 0:03:10.8]} 17. Be3 {[%clk 0:02:34.1]} 17... Ne5 {[%clk 0:02:59]} 18. f4
{[%clk 0:02:07.1]} 18... Nc4 {[%clk 0:02:50.8]} 19. c3 {[%clk 0:01:32.4]} 19...
Qh4 {[%clk 0:02:37.2]} 20. Bxc4 {[%clk 0:01:12.7]} 20... dxc4 {[%clk 0:02:30.5]}
21. Nf3 {[%clk 0:01:02.4]} 21... Bxf3 {[%clk 0:02:16.7]} 22. gxf3 {[%clk
0:01:00.3]} 22... Qxh3 {[%clk 0:01:57.6]} 23. Bxc5 {[%clk 0:00:56.6]} 23... Nxc5
{[%clk 0:01:52.4]} 24. Qe3 {[%clk 0:00:55.5]} 24... Nd3 {[%clk 0:01:48.3]} 25.
Rf1 {[%clk 0:00:49.5]} 25... Rfe8 {[%clk 0:01:45.9]} 26. Qxa7 {[%clk 0:00:39.2]}
26... Rxe2 {[%clk 0:01:41]} 27. Qxb7 {[%clk 0:00:31.3]} 27... Qg2# {[%clk
0:01:37.7]} 0-1

[Event "Live Chess"]
[Site "Chess.com"]
[Date "2023.05.21"]
[Round "-"]
[White "LiamBellwood"]
[Black "BostonStrangler"]
[Result "0-1"]
[WhiteElo "1967"]
[BlackElo "2075"]
[TimeControl "300"]
[EndTime "2:57:58 PDT"]
[Termination "BostonStrangler won by resignation"]

1. d4 {[%clk 0:04:59.2]} 1... Nf6 {[%clk 0:04:58.6]} 2. Nc3 {[%clk 0:04:58.9]}
2... d5 {[%clk 0:04:56.5]} 3. Bf4 {[%clk 0:04:58.5]} 3... a6 {[%clk 0:04:55.4]}
4. e3 {[%clk 0:04:57.2]} 4... c5 {[%clk 0:04:50.6]} 5. dxc5 {[%clk 0:04:57.1]}
5... Nc6 {[%clk 0:04:47.3]} 6. a3 {[%clk 0:04:56.4]} 6... e5 {[%clk 0:04:45.8]}
7. Bg5 {[%clk 0:04:55.4]} 7... Be6 {[%clk 0:04:45]} 8. b4 {[%clk 0:04:49.3]}
8... h6 {[%clk 0:04:43.6]} 9. Bxf6 {[%clk 0:04:47.7]} 9... gxf6 {[%clk
0:04:42.8]} 10. Nf3 {[%clk 0:04:44.2]} 10... Rg8 {[%clk 0:04:40.2]} 11. Na4
{[%clk 0:04:38.4]} 11... f5 {[%clk 0:04:22.3]} 12. Nb6 {[%clk 0:04:36.3]} 12...
Rb8 {[%clk 0:04:20.6]} 13. c3 {[%clk 0:04:28.5]} 13... Bg7 {[%clk 0:04:18.2]}
14. Qa4 {[%clk 0:04:17.3]} 14... Kf8 {[%clk 0:04:10.7]} 15. Bxa6 {[%clk
0:04:10.5]} 15... e4 {[%clk 0:03:59.6]} 16. Nd4 {[%clk 0:03:30.3]} 16... Nxd4
{[%clk 0:03:53.2]} 17. cxd4 {[%clk 0:03:30.2]} 17... bxa6 {[%clk 0:03:51.9]} 18.
Qxa6 {[%clk 0:03:30.1]} 18... f4 {[%clk 0:03:46]} 19. b5 {[%clk 0:03:13.4]}
19... fxe3 {[%clk 0:03:40.9]} 20. fxe3 {[%clk 0:03:11.2]} 20... Qg5 {[%clk
0:03:39.6]} 21. O-O {[%clk 0:02:44.9]} 21... Qxe3+ {[%clk 0:03:35.2]} 22. Kh1
{[%clk 0:02:43.9]} 22... Bxd4 {[%clk 0:03:34.3]} 23. Qa7 {[%clk 0:01:52]} 23...
Re8 {[%clk 0:03:27.8]} 24. Nd7+ {[%clk 0:01:46.2]} 24... Kg7 {[%clk 0:03:22]}
25. Rae1 {[%clk 0:01:36.9]} 25... Qd2 {[%clk 0:03:13.8]} 26. Qc7 {[%clk
0:01:28.1]} 26... Kh8 {[%clk 0:02:59.5]} 27. g3 {[%clk 0:00:48]} 27... Bh3
{[%clk 0:02:49.9]} 28. Rg1 {[%clk 0:00:47.4]} 28... Bg2+ {[%clk 0:02:43]} 0-1

[Event "Live Chess"]
[Site "Chess.com"]
[Date "2023.05.21"]
[Round "-"]
[White "WelshTiger"]
[Black "chessfiction"]
[Result "1-0"]
[WhiteElo "2348"]
[BlackElo "2318"]
[TimeControl "300"]
[EndTime "2:58:09 PDT"]
[Termination "WelshTiger won by resignation"]

1. e4 {[%clk 0:04:57]} 1... e5 {[%clk 0:04:58.4]} 2. Nf3 {[%clk 0:04:55.6]} 2...
d6 {[%clk 0:04:57.6]} 3. Bc4 {[%clk 0:04:53.1]} 3... c6 {[%clk 0:04:56.2]} 4. a4
{[%clk 0:04:50]} 4... Qc7 {[%clk 0:04:55.1]} 5. d4 {[%clk 0:04:47.8]} 5... Bg4
{[%clk 0:04:53.8]} 6. Be3 {[%clk 0:04:44]} 6... Nd7 {[%clk 0:04:51.7]} 7. h3
{[%clk 0:04:42.2]} 7... Bh5 {[%clk 0:04:50]} 8. Nc3 {[%clk 0:04:39.7]} 8... Ngf6
{[%clk 0:04:45.2]} 9. Qd2 {[%clk 0:04:38.3]} 9... Bxf3 {[%clk 0:04:40.4]} 10.
gxf3 {[%clk 0:04:38.2]} 10... a6 {[%clk 0:04:37.6]} 11. a5 {[%clk 0:04:36.5]}
11... Rc8 {[%clk 0:04:28.3]} 12. f4 {[%clk 0:04:33.8]} 12... Be7 {[%clk
0:04:23.1]} 13. f5 {[%clk 0:04:29.2]} 13... d5 {[%clk 0:04:09.1]} 14. exd5
{[%clk 0:04:15.5]} 14... cxd5 {[%clk 0:04:04.5]} 15. Bb3 {[%clk 0:04:14.3]}
15... Bb4 {[%clk 0:04:00.6]} 16. dxe5 {[%clk 0:03:52.7]} 16... Nxe5 {[%clk
0:03:57.8]} 17. O-O-O {[%clk 0:03:51.2]} 17... O-O {[%clk 0:03:50.5]} 18. Bf4
{[%clk 0:03:35.6]} 18... Qxa5 {[%clk 0:03:47]} 19. Kb1 {[%clk 0:03:27.9]} 19...
Ne4 {[%clk 0:03:36.3]} 20. Qxd5 {[%clk 0:03:21.9]} 20... Nxc3+ {[%clk
0:03:29.1]} 21. bxc3 {[%clk 0:03:21.2]} 21... Rc5 {[%clk 0:03:07.7]} 22. cxb4
{[%clk 0:03:12.8]} 22... Qxb4 {[%clk 0:03:03.5]} 23. Qd4 {[%clk 0:03:05.4]}
23... Nc4 {[%clk 0:03:00.8]} 24. Bc1 {[%clk 0:02:55.6]} 24... a5 {[%clk
0:02:29.3]} 25. Rhg1 {[%clk 0:02:54]} 25... f6 {[%clk 0:02:23]} 26. Qd7 {[%clk
0:02:45.5]} 26... Rf7 {[%clk 0:02:18.3]} 27. Qe8+ {[%clk 0:02:41.4]} 27... Rf8
{[%clk 0:02:17.3]} 28. Qe6+ {[%clk 0:02:41]} 28... Kh8 {[%clk 0:02:15]} 29. Qe7
{[%clk 0:02:30.1]} 29... Rg8 {[%clk 0:02:02.4]} 30. Rd8 {[%clk 0:02:29.1]} 1-0

[Event "Live Chess"]
[Site "Chess.com"]
[Date "2023.05.21"]
[Round "-"]
[White "Cimon"]
[Black "Greenbecker"]
[Result "1-0"]
[WhiteElo "1838"]
[BlackElo "1646"]
[TimeControl "300"]
[EndTime "2:58:09 PDT"]
[Termination "Cimon won by resignation"]

1. Nf3 {[%clk 0:04:58]} 1... d5 {[%clk 0:04:56.7]} 2. d4 {[%clk 0:04:56.6]} 2...
Nf6 {[%clk 0:04:55.6]} 3. c4 {[%clk 0:04:55.3]} 3... e6 {[%clk 0:04:53.6]} 4.
Nc3 {[%clk 0:04:53.8]} 4... Bb4 {[%clk 0:04:52.6]} 5. Bf4 {[%clk 0:04:47.1]}
5... c6 {[%clk 0:04:50.1]} 6. e3 {[%clk 0:04:45.7]} 6... Ne4 {[%clk 0:04:49.1]}
7. Qb3 {[%clk 0:04:40.2]} 7... Qa5 {[%clk 0:04:45.6]} 8. Rc1 {[%clk 0:04:29.5]}
8... Nd7 {[%clk 0:04:39.6]} 9. Bd3 {[%clk 0:04:25]} 9... Ndf6 {[%clk 0:04:37.8]}
10. O-O {[%clk 0:04:20.6]} 10... Nxc3 {[%clk 0:04:30.8]} 11. bxc3 {[%clk
0:04:18]} 11... Be7 {[%clk 0:04:28.4]} 12. h3 {[%clk 0:03:56.3]} 12... O-O
{[%clk 0:04:26.7]} 13. Ne5 {[%clk 0:03:51.1]} 13... Qb6 {[%clk 0:04:21.3]} 14.
Qc2 {[%clk 0:03:47.8]} 14... Nd7 {[%clk 0:04:14.7]} 15. Bxh7+ {[%clk 0:03:44.2]}
15... Kh8 {[%clk 0:04:13]} 16. Bd3 {[%clk 0:03:38.7]} 16... f6 {[%clk
0:04:05.3]} 17. Ng6+ {[%clk 0:03:34.1]} 1-0

[Event "Live Chess"]
[Site "Chess.com"]
[Date "2023.05.21"]
[Round "-"]
[White "PrinceCharming_1"]
[Black "AttackingSnowLeopard"]
[Result "0-1"]
[WhiteElo "1615"]
[BlackElo "2209"]
[TimeControl "300"]
[EndTime "2:58:10 PDT"]
[Termination "AttackingSnowLeopard won by resignation"]

1. e4 {[%clk 0:04:58.3]} 1... e5 {[%clk 0:04:57.7]} 2. Nf3 {[%clk 0:04:57.7]}
2... Nc6 {[%clk 0:04:56.5]} 3. Bc4 {[%clk 0:04:55.7]} 3... Bc5 {[%clk
0:04:54.5]} 4. b4 {[%clk 0:04:54.7]} 4... Bxb4 {[%clk 0:04:52.9]} 5. c3 {[%clk
0:04:54.2]} 5... Be7 {[%clk 0:04:52.2]} 6. d4 {[%clk 0:04:53.7]} 6... Na5 {[%clk
0:04:50.8]} 7. Bd3 {[%clk 0:04:52.3]} 7... d6 {[%clk 0:04:50.2]} 8. O-O {[%clk
0:04:49.1]} 8... Nf6 {[%clk 0:04:48.6]} 9. Bd2 {[%clk 0:04:43]} 9... O-O {[%clk
0:04:40.2]} 10. dxe5 {[%clk 0:04:40.7]} 10... dxe5 {[%clk 0:04:39]} 11. Bc2
{[%clk 0:04:39.8]} 11... Nc4 {[%clk 0:04:36.9]} 12. Bg5 {[%clk 0:04:34.5]} 12...
Qxd1 {[%clk 0:04:21.1]} 13. Rxd1 {[%clk 0:04:33.2]} 13... Bg4 {[%clk 0:04:20.8]}
14. Nbd2 {[%clk 0:04:08.5]} 14... Nxd2 {[%clk 0:03:51.6]} 15. Rxd2 {[%clk
0:04:08.4]} 15... Bxf3 {[%clk 0:03:50.6]} 16. gxf3 {[%clk 0:04:08.1]} 16... Nxe4
{[%clk 0:03:40.9]} 17. Bxe7 {[%clk 0:04:02.7]} 17... Nxd2 {[%clk 0:03:39.4]} 18.
Bxf8 {[%clk 0:04:01.8]} 18... Nxf3+ {[%clk 0:03:38.1]} 19. Kg2 {[%clk
0:04:01.1]} 19... Nh4+ {[%clk 0:03:32.6]} 20. Kg3 {[%clk 0:03:59.8]} 20... Kxf8
{[%clk 0:03:25.2]} 21. Kxh4 {[%clk 0:03:58.1]} 21... Rd8 {[%clk 0:03:22.7]} 22.
Rd1 {[%clk 0:03:55.5]} 22... Rxd1 {[%clk 0:03:18.9]} 23. Bxd1 {[%clk 0:03:54.3]}
23... Ke7 {[%clk 0:03:18]} 24. Bf3 {[%clk 0:03:51.1]} 24... b6 {[%clk
0:03:16.5]} 25. Kg3 {[%clk 0:03:48.1]} 25... Kd6 {[%clk 0:03:14.5]} 26. Be4
{[%clk 0:03:47.7]} 26... Kc5 {[%clk 0:03:12.8]} 27. Bxh7 {[%clk 0:03:42.3]}
27... Kc4 {[%clk 0:03:10.6]} 28. Bg8 {[%clk 0:03:41.2]} 28... Kxc3 {[%clk
0:03:09.8]} 29. Bxf7 {[%clk 0:03:40.3]} 29... c5 {[%clk 0:03:05.4]} 30. Kf3
{[%clk 0:03:39.1]} 30... Kd4 {[%clk 0:03:03.5]} 31. h4 {[%clk 0:03:34.8]} 31...
c4 {[%clk 0:03:01.9]} 32. Ke2 {[%clk 0:03:33.6]} 32... b5 {[%clk 0:03:01.4]} 33.
Kd2 {[%clk 0:03:32.4]} 33... b4 {[%clk 0:03:00.6]} 34. Kc2 {[%clk 0:03:30.1]}
34... a5 {[%clk 0:03:00.1]} 35. Be6 {[%clk 0:03:27.9]} 35... a4 {[%clk
0:02:57.9]} 36. h5 {[%clk 0:03:24.4]} 36... b3+ {[%clk 0:02:56.6]} 37. axb3
{[%clk 0:03:22.7]} 37... axb3+ {[%clk 0:02:56]} 38. Kb2 {[%clk 0:03:22]} 38...
Kd3 {[%clk 0:02:54.4]} 39. Bf5+ {[%clk 0:03:19.2]} 39... Kd2 {[%clk 0:02:53.1]}
40. Kb1 {[%clk 0:03:06.9]} 40... c3 {[%clk 0:02:51]} 41. f3 {[%clk 0:03:04.1]}
41... c2+ {[%clk 0:02:50.1]} 42. Bxc2 {[%clk 0:03:02.3]} 42... bxc2+ {[%clk
0:02:50]} 43. Ka2 {[%clk 0:03:02.2]} 43... c1=Q {[%clk 0:02:48.8]} 44. Kb3
{[%clk 0:03:01.2]} 44... Qf1 {[%clk 0:02:48.3]} 0-1